[Event "Titled Tuesday Blitz August 16 Early 2022"]
[White "Csonka, Balazs"]
[Black "Buscar, Michael"]
[WhiteFideId "742910"]
[BlackFideId "2603616"]
[WhiteElo "2404"]
[BlackElo "2010"]
[Result "1-0"]
[Round "02"]
[TimeControl "180+2"]
[Date "2022.08.18"]
[WhiteClock "0:00:00"]
[BlackClock "0:00:00"]

1. e4 {[%clk 0:00:00]}  e5 {[%clk 0:00:00]} 2. Nf3 {[%clk 0:00:00]}  Nf6 {[%clk 0:00:00]} 3. Nc3 {[%clk 0:00:00]}  Nc6 {[%clk 0:00:00]} 4. Bb5 {[%clk 0:00:00]}  Bc5 {[%clk 0:00:00]} 5. O-O {[%clk 0:00:00]}  d6 {[%clk 0:00:00]} 6. d4 {[%clk 0:00:00]}  exd4 {[%clk 0:00:00]} 7. Nxd4 {[%clk 0:00:00]}  Bd7 {[%clk 0:00:00]} 8. Bxc6 {[%clk 0:00:00]}  bxc6 {[%clk 0:00:00]} 9. Bg5 {[%clk 0:00:00]}  h6 {[%clk 0:00:00]} 10. Bh4 {[%clk 0:00:00]}  g5 {[%clk 0:00:00]} 11. Bg3 {[%clk 0:00:00]}  Qe7 {[%clk 0:00:00]} 12. Re1 {[%clk 0:00:00]}  O-O {[%clk 0:00:00]} 13. e5 {[%clk 0:00:00]}  Bxd4 {[%clk 0:00:00]} 14. Qxd4 {[%clk 0:00:00]}  dxe5 {[%clk 0:00:00]} 15. Bxe5 {[%clk 0:00:00]}  c5 {[%clk 0:00:00]} 16. Qd3 {[%clk 0:00:00]}  Be6 {[%clk 0:00:00]} 17. Qf3 {[%clk 0:00:00]}  Ng4 {[%clk 0:00:00]} 18. Bg3 {[%clk 0:00:00]}  Rad8 {[%clk 0:00:00]} 19. Qxg4 {[%clk 0:00:00]} 1-0


[Site "https://www.chess.com"]

[Event "Titled Tuesday Blitz August 16 Early 2022"]
[White "Delorme, Axel"]
[Black "Sadubayev, Airat"]
[WhiteFideId "632023"]
[BlackFideId "13713264"]
[WhiteElo "2474"]
[BlackElo "2151"]
[Result "1/2-1/2"]
[Round "02"]
[TimeControl "180+2"]
[Date "2022.08.18"]
[WhiteClock "0:00:00"]
[BlackClock "0:00:00"]

1. d4 {[%clk 0:00:00]}  d5 {[%clk 0:00:00]} 2. c4 {[%clk 0:00:00]}  c6 {[%clk 0:00:00]} 3. Nf3 {[%clk 0:00:00]}  Nf6 {[%clk 0:00:00]} 4. e3 {[%clk 0:00:00]}  e6 {[%clk 0:00:00]} 5. Nc3 {[%clk 0:00:00]}  Nbd7 {[%clk 0:00:00]} 6. Bd3 {[%clk 0:00:00]}  dxc4 {[%clk 0:00:00]} 7. Bxc4 {[%clk 0:00:00]}  b5 {[%clk 0:00:00]} 8. Be2 {[%clk 0:00:00]}  Bb7 {[%clk 0:00:00]} 9. e4 {[%clk 0:00:00]}  b4 {[%clk 0:00:00]} 10. e5 {[%clk 0:00:00]}  bxc3 {[%clk 0:00:00]} 11. exf6 {[%clk 0:00:00]}  Qxf6 {[%clk 0:00:00]} 12. bxc3 {[%clk 0:00:00]}  c5 {[%clk 0:00:00]} 13. Bb5 {[%clk 0:00:00]}  cxd4 {[%clk 0:00:00]} 14. Qa4 {[%clk 0:00:00]}  Rd8 {[%clk 0:00:00]} 15. Bg5 {[%clk 0:00:00]}  Qf5 {[%clk 0:00:00]} 16. Bxd8 {[%clk 0:00:00]}  Kxd8 {[%clk 0:00:00]} 17. Bxd7 {[%clk 0:00:00]}  Qe4+ {[%clk 0:00:00]} 18. Kf1 {[%clk 0:00:00]}  Qd3+ {[%clk 0:00:00]} 19. Kg1 {[%clk 0:00:00]}  Bxf3 {[%clk 0:00:00]} 20. gxf3 {[%clk 0:00:00]}  Qg6+ {[%clk 0:00:00]} 21. Kf1 {[%clk 0:00:00]}  Qd3+ {[%clk 0:00:00]} 22. Ke1 {[%clk 0:00:00]}  Qxc3+ {[%clk 0:00:00]} 23. Kf1 {[%clk 0:00:00]}  Qxa1+ {[%clk 0:00:00]} 24. Kg2 {[%clk 0:00:00]}  Qb2 {[%clk 0:00:00]} 25. Rd1 {[%clk 0:00:00]}  Bc5 {[%clk 0:00:00]} 26. Qc6 {[%clk 0:00:00]}  Qc2 {[%clk 0:00:00]} 27. Rg1 {[%clk 0:00:00]}  Ke7 {[%clk 0:00:00]} 28. Bc8 {[%clk 0:00:00]}  Kf8 {[%clk 0:00:00]} 29. Bxe6 {[%clk 0:00:00]}  Qg6+ {[%clk 0:00:00]} 30. Kh1 {[%clk 0:00:00]}  Qxe6 {[%clk 0:00:00]} 31. Qxc5+ {[%clk 0:00:00]}  Kg8 {[%clk 0:00:00]} 32. Rb1 {[%clk 0:00:00]}  h6 {[%clk 0:00:00]} 33. Qxd4 {[%clk 0:00:00]}  Kh7 {[%clk 0:00:00]} 34. Qe4+ {[%clk 0:00:00]}  Qxe4 {[%clk 0:00:00]} 35. fxe4 {[%clk 0:00:00]}  Re8 {[%clk 0:00:00]} 36. f3 {[%clk 0:00:00]}  Re7 {[%clk 0:00:00]} 37. Rb5 {[%clk 0:00:00]}  Kg6 {[%clk 0:00:00]} 38. Kg2 {[%clk 0:00:00]}  Kf6 {[%clk 0:00:00]} 39. Kg3 {[%clk 0:00:00]}  g5 {[%clk 0:00:00]} 40. h4 {[%clk 0:00:00]}  Kg6 {[%clk 0:00:00]} 41. hxg5 {[%clk 0:00:00]}  hxg5 {[%clk 0:00:00]} 42. Kg4 {[%clk 0:00:00]}  f6 {[%clk 0:00:00]} 43. Ra5 {[%clk 0:00:00]}  Rc7 {[%clk 0:00:00]} 44. Ra6 {[%clk 0:00:00]}  Rh7 {[%clk 0:00:00]} 45. Kg3 {[%clk 0:00:00]}  Rb7 {[%clk 0:00:00]} 46. e5 {[%clk 0:00:00]}  Rb6 {[%clk 0:00:00]} 47. Rxa7 {[%clk 0:00:00]}  fxe5 {[%clk 0:00:00]} 48. a4 {[%clk 0:00:00]}  Re6 {[%clk 0:00:00]} 49. a5 {[%clk 0:00:00]}  e4 {[%clk 0:00:00]} 50. fxe4 {[%clk 0:00:00]}  Rxe4 {[%clk 0:00:00]} 51. Ra8 {[%clk 0:00:00]}  Kh5 {[%clk 0:00:00]} 52. a6 {[%clk 0:00:00]}  Ra4 {[%clk 0:00:00]} 53. a7 {[%clk 0:00:00]}  Ra3+ {[%clk 0:00:00]} 54. Kf2 {[%clk 0:00:00]}  Kg4 {[%clk 0:00:00]} 55. Rb8 {[%clk 0:00:00]}  Rxa7 {[%clk 0:00:00]} 56. Rb3 {[%clk 0:00:00]}  Rd7 {[%clk 0:00:00]} 57. Kg2 {[%clk 0:00:00]}  Re7 {[%clk 0:00:00]} 58. Ra3 {[%clk 0:00:00]}  Re2+ {[%clk 0:00:00]} 59. Kg1 {[%clk 0:00:00]}  Rb2 {[%clk 0:00:00]} 60. Rc3 {[%clk 0:00:00]}  Kh4 {[%clk 0:00:00]} 61. Ra3 {[%clk 0:00:00]}  Rb4 {[%clk 0:00:00]} 62. Rc3 {[%clk 0:00:00]}  Rf4 {[%clk 0:00:00]} 63. Ra3 {[%clk 0:00:00]}  Rd4 {[%clk 0:00:00]} 64. Kg2 {[%clk 0:00:00]}  Rd2+ {[%clk 0:00:00]} 65. Kg1 {[%clk 0:00:00]}  Rd1+ {[%clk 0:00:00]} 66. Kg2 {[%clk 0:00:00]}  Rd2+ {[%clk 0:00:00]} 67. Kg1 {[%clk 0:00:00]}  Rd5 {[%clk 0:00:00]} 68. Rb3 {[%clk 0:00:00]}  g4 {[%clk 0:00:00]} 69. Ra3 {[%clk 0:00:00]}  Rf5 {[%clk 0:00:00]} 70. Rb3 {[%clk 0:00:00]}  Kg5 {[%clk 0:00:00]} 71. Ra3 {[%clk 0:00:00]}  Kf4 {[%clk 0:00:00]} 72. Kg2 {[%clk 0:00:00]}  Kg5 {[%clk 0:00:00]} 73. Rb3 {[%clk 0:00:00]}  Re5 {[%clk 0:00:00]} 74. Ra3 {[%clk 0:00:00]}  Re2+ {[%clk 0:00:00]} 75. Kg1 {[%clk 0:00:00]}  Rc2 {[%clk 0:00:00]} 76. Rb3 {[%clk 0:00:00]}  Kf4 {[%clk 0:00:00]} 77. Ra3 {[%clk 0:00:00]}  Rb2 {[%clk 0:00:00]} 78. Rc3 {[%clk 0:00:00]}  Rd2 {[%clk 0:00:00]} 79. Ra3 {[%clk 0:00:00]}  Re2 {[%clk 0:00:00]} 80. Rb3 {[%clk 0:00:00]}  Re1+ {[%clk 0:00:00]} 81. Kg2 {[%clk 0:00:00]}  Re5 {[%clk 0:00:00]} 82. Ra3 {[%clk 0:00:00]}  Re3 {[%clk 0:00:00]} 83. Rxe3 {[%clk 0:00:00]}  Kxe3 {[%clk 0:00:00]} 84. Kg3 {[%clk 0:00:00]}  Ke2 {[%clk 0:00:00]} 85. Kxg4 {[%clk 0:00:00]} 1/2-1/2


[Site "https://www.chess.com"]

[Event "Titled Tuesday Blitz August 16 Early 2022"]
[White "Dounis, Alexandros"]
[Black "Belov, Vladimir"]
[WhiteFideId "4213238"]
[BlackFideId "4132394"]
[WhiteElo "2204"]
[BlackElo "2501"]
[Result "0-1"]
[Round "02"]
[TimeControl "180+1"]
[Date "2022.08.16"]
[WhiteClock "0:00:07"]
[BlackClock "0:00:08"]

1. Nf3 {[%clk 0:03:00]}  Nf6 {[%clk 0:02:59]} 2. g3 {[%clk 0:03:01]}  d5 {[%clk 0:02:57]} 3. Bg2 {[%clk 0:03:02]}  c6 {[%clk 0:02:57]} 4. O-O {[%clk 0:03:03]}  Bg4 {[%clk 0:02:58]} 5. d3 {[%clk 0:03:03]}  Nbd7 {[%clk 0:02:58]} 6. c4 {[%clk 0:03:02]}  e6 {[%clk 0:02:55]} 7. h3 {[%clk 0:03:01]}  Bh5 {[%clk 0:02:54]} 8. cxd5 {[%clk 0:02:59]}  exd5 {[%clk 0:02:54]} 9. Nc3 {[%clk 0:02:58]}  Bc5 {[%clk 0:02:46]} 10. e4 {[%clk 0:02:57]}  dxe4 {[%clk 0:02:38]} 11. dxe4 {[%clk 0:02:57]}  Bxf3 {[%clk 0:02:36]} 12. Qxf3 {[%clk 0:02:55]}  Ne5 {[%clk 0:02:28]} 13. Qf5 {[%clk 0:02:41]}  Qe7 {[%clk 0:02:18]} 14. Bg5 {[%clk 0:02:31]}  h6 {[%clk 0:02:06]} 15. Bxf6 {[%clk 0:02:30]}  Qxf6 {[%clk 0:02:06]} 16. Qxf6 {[%clk 0:02:29]}  gxf6 {[%clk 0:02:07]} 17. Rad1 {[%clk 0:02:28]}  Ke7 {[%clk 0:02:06]} 18. Na4 {[%clk 0:02:22]}  Bb6 {[%clk 0:01:54]} 19. b3 {[%clk 0:02:16]}  Rhd8 {[%clk 0:01:43]} 20. Nb2 {[%clk 0:01:52]}  Bd4 {[%clk 0:01:33]} 21. Rd2 {[%clk 0:01:46]}  Bc3 {[%clk 0:01:24]} 22. Rc2 {[%clk 0:01:45]}  Bxb2 {[%clk 0:01:16]} 23. Rxb2 {[%clk 0:01:45]}  Rd3 {[%clk 0:01:17]} 24. f4 {[%clk 0:01:25]}  Nd7 {[%clk 0:01:13]} 25. Kf2 {[%clk 0:01:16]}  Nc5 {[%clk 0:01:08]} 26. Rc2 {[%clk 0:01:06]}  Ne6 {[%clk 0:01:05]} 27. Rfc1 {[%clk 0:00:36]}  a5 {[%clk 0:00:45]} 28. Bf1 {[%clk 0:00:35]}  Rd4 {[%clk 0:00:42]} 29. Ke3 {[%clk 0:00:33]}  Rad8 {[%clk 0:00:28]} 30. Rc3 {[%clk 0:00:21]}  Rd2 {[%clk 0:00:28]} 31. R1c2 {[%clk 0:00:18]}  Rd1 {[%clk 0:00:28]} 32. Rc1 {[%clk 0:00:18]}  R1d2 {[%clk 0:00:24]} 33. R1c2 {[%clk 0:00:18]}  R2d7 {[%clk 0:00:22]} 34. Bc4 {[%clk 0:00:18]}  Nd4 {[%clk 0:00:21]} 35. Rf2 {[%clk 0:00:18]}  f5 {[%clk 0:00:17]} 36. exf5 {[%clk 0:00:17]}  Nxf5+ {[%clk 0:00:17]} 37. Kf3 {[%clk 0:00:16]}  Kf6 {[%clk 0:00:18]} 38. Kg2 {[%clk 0:00:14]}  b5 {[%clk 0:00:18]} 39. Bf1 {[%clk 0:00:14]}  Rd6 {[%clk 0:00:18]} 40. Rfc2 {[%clk 0:00:14]}  b4 {[%clk 0:00:16]} 41. Rxc6 {[%clk 0:00:13]}  Ne3+ {[%clk 0:00:16]} 42. Kf3 {[%clk 0:00:13]}  Nxc2 {[%clk 0:00:17]} 43. Rxc2 {[%clk 0:00:14]}  Rd2 {[%clk 0:00:17]} 44. Rc6+ {[%clk 0:00:13]}  R8d6 {[%clk 0:00:18]} 45. Rc5 {[%clk 0:00:14]}  Rxa2 {[%clk 0:00:18]} 46. Bc4 {[%clk 0:00:13]}  Rc2 {[%clk 0:00:17]} 47. Kg4 {[%clk 0:00:12]}  Rc3 {[%clk 0:00:17]} 48. Rxa5 {[%clk 0:00:13]}  h5+ {[%clk 0:00:16]} 49. Rxh5 {[%clk 0:00:12]}  Rd2 {[%clk 0:00:15]} 50. Rf5+ {[%clk 0:00:13]}  Kg6 {[%clk 0:00:14]} 51. Rxf7 {[%clk 0:00:14]}  Rxc4 {[%clk 0:00:13]} 52. Rb7 {[%clk 0:00:11]}  Rc3 {[%clk 0:00:11]} 53. Rxb4 {[%clk 0:00:11]}  Rg2 {[%clk 0:00:12]} 54. Rb6+ {[%clk 0:00:11]}  Kf7 {[%clk 0:00:13]} 55. Kf5 {[%clk 0:00:11]}  Rgxg3 {[%clk 0:00:12]} 56. b4 {[%clk 0:00:11]}  Rxh3 {[%clk 0:00:11]} 57. Rb7+ {[%clk 0:00:12]}  Ke8 {[%clk 0:00:11]} 58. b5 {[%clk 0:00:12]}  Rh5+ {[%clk 0:00:11]} 59. Kg6 {[%clk 0:00:12]}  Rhc5 {[%clk 0:00:09]} 60. f5 {[%clk 0:00:12]}  Rg3+ {[%clk 0:00:09]} 61. Kf6 {[%clk 0:00:12]}  Rf3 {[%clk 0:00:10]} 62. Ke6 {[%clk 0:00:12]}  Kd8 {[%clk 0:00:09]} 63. f6 {[%clk 0:00:09]}  Re3+ {[%clk 0:00:09]} 64. Kf7 {[%clk 0:00:10]}  Rf5 {[%clk 0:00:07]} 65. b6 {[%clk 0:00:10]}  Ref3 {[%clk 0:00:06]} 66. Rb8+ {[%clk 0:00:10]}  Kd7 {[%clk 0:00:06]} 67. Kg7 {[%clk 0:00:07]}  Rxf6 {[%clk 0:00:06]} 68. Rb7+ {[%clk 0:00:06]}  Kc6 {[%clk 0:00:06]} 69. Ra7 {[%clk 0:00:07]}  Kxb6 {[%clk 0:00:06]} 70. Ra1 {[%clk 0:00:07]}  R6f4 {[%clk 0:00:06]} 71. Rg1 {[%clk 0:00:07]}  Kc5 {[%clk 0:00:06]} 72. Rg5+ {[%clk 0:00:07]}  Kd4 {[%clk 0:00:07]} 73. Rg1 {[%clk 0:00:08]}  Ke4 {[%clk 0:00:07]} 74. Kg6 {[%clk 0:00:08]}  Rf6+ {[%clk 0:00:08]} 75. Kg5 {[%clk 0:00:09]}  R6f5+ {[%clk 0:00:07]} 76. Kg4 {[%clk 0:00:08]}  R3f4+ {[%clk 0:00:08]} 77. Kh3 {[%clk 0:00:08]}  Ke5 {[%clk 0:00:08]} 78. Re1+ {[%clk 0:00:08]}  Kf6 {[%clk 0:00:08]} 79. Re8 {[%clk 0:00:08]}  Rg5 {[%clk 0:00:07]} 80. Rf8+ {[%clk 0:00:08]}  Ke5 {[%clk 0:00:08]} 81. Re8+ {[%clk 0:00:08]}  Kf5 {[%clk 0:00:08]} 82. Rf8+ {[%clk 0:00:08]}  Ke4 {[%clk 0:00:09]} 83. Re8+ {[%clk 0:00:08]}  Kf3 {[%clk 0:00:09]} 84. Rh8 {[%clk 0:00:08]}  Rfg4 {[%clk 0:00:08]} 85. Rh6 {[%clk 0:00:07]}  Rg1 {[%clk 0:00:08]} 86. Kh2 {[%clk 0:00:07]}  R5g2+ {[%clk 0:00:07]} 87. Kh3 {[%clk 0:00:07]}  Rh1# {[%clk 0:00:08]} 0-1


[Site "https://www.chess.com"]

[Event "Titled Tuesday Blitz August 16 Early 2022"]
[White "Drygalov, Sergey"]
[Black "Orlov, Georgi"]
[WhiteFideId "24171743"]
[BlackFideId "2011271"]
[WhiteElo "2523"]
[BlackElo "2594"]
[Result "1-0"]
[Round "02"]
[TimeControl "180+1"]
[Date "2022.08.16"]
[WhiteClock "0:00:55"]
[BlackClock "0:00:06"]

1. d4 {[%clk 0:03:00]}  Nf6 {[%clk 0:02:57]} 2. c4 {[%clk 0:03:00]}  Nc6 {[%clk 0:02:57]} 3. Nf3 {[%clk 0:02:59]}  e6 {[%clk 0:02:56]} 4. g3 {[%clk 0:02:57]}  Bb4+ {[%clk 0:02:56]} 5. Bd2 {[%clk 0:02:53]}  Qe7 {[%clk 0:02:55]} 6. Nc3 {[%clk 0:02:53]}  d5 {[%clk 0:02:53]} 7. Bg2 {[%clk 0:02:39]}  O-O {[%clk 0:02:53]} 8. O-O {[%clk 0:02:37]}  dxc4 {[%clk 0:02:52]} 9. Bg5 {[%clk 0:02:30]}  h6 {[%clk 0:02:44]} 10. Bh4 {[%clk 0:02:29]}  g5 {[%clk 0:02:26]} 11. Nxg5 {[%clk 0:02:27]}  hxg5 {[%clk 0:02:26]} 12. Bxg5 {[%clk 0:02:28]}  Qd8 {[%clk 0:02:26]} 13. Qd2 {[%clk 0:02:15]}  Be7 {[%clk 0:02:19]} 14. Bh6 {[%clk 0:02:13]}  Kh7 {[%clk 0:02:11]} 15. Bxf8 {[%clk 0:02:09]}  Bxf8 {[%clk 0:02:11]} 16. Rad1 {[%clk 0:02:09]}  Bg7 {[%clk 0:02:05]} 17. e4 {[%clk 0:02:08]}  Kg8 {[%clk 0:02:04]} 18. e5 {[%clk 0:02:00]}  Nd5 {[%clk 0:01:57]} 19. Ne4 {[%clk 0:01:59]}  b6 {[%clk 0:01:49]} 20. h4 {[%clk 0:01:58]}  Ba6 {[%clk 0:01:46]} 21. Rfe1 {[%clk 0:01:57]}  Ncb4 {[%clk 0:01:40]} 22. Ng5 {[%clk 0:01:55]}  Nxa2 {[%clk 0:01:26]} 23. Qc2 {[%clk 0:01:48]}  Kf8 {[%clk 0:01:13]} 24. Qh7 {[%clk 0:01:41]}  c3 {[%clk 0:01:11]} 25. Qh5 {[%clk 0:01:37]}  Qd7 {[%clk 0:01:04]} 26. Bxd5 {[%clk 0:01:36]}  exd5 {[%clk 0:01:01]} 27. e6 {[%clk 0:01:36]}  fxe6 {[%clk 0:00:54]} 28. Qg6 {[%clk 0:01:09]}  Kg8 {[%clk 0:00:37]} 29. Rxe6 {[%clk 0:01:05]}  Bb5 {[%clk 0:00:15]} 30. Rde1 {[%clk 0:01:02]}  c2 {[%clk 0:00:13]} 31. Qxc2 {[%clk 0:00:59]}  Nb4 {[%clk 0:00:08]} 32. Qh7+ {[%clk 0:00:58]}  Kf8 {[%clk 0:00:08]} 33. Re7 {[%clk 0:00:56]}  Bd3 {[%clk 0:00:06]} 34. Qxg7# {[%clk 0:00:55]} 1-0


[Site "https://www.chess.com"]

[Event "Titled Tuesday Blitz August 16 Early 2022"]
[White "Dubov, Daniil"]
[Black "Sovetbekova, Nurai"]
[WhiteFideId "24126055"]
[BlackFideId "13801910"]
[WhiteElo "2791"]
[BlackElo "1646"]
[Result "1-0"]
[Round "02"]
[TimeControl "180+2"]
[Date "2022.08.18"]
[WhiteClock "0:00:00"]
[BlackClock "0:00:00"]

1. e4 {[%clk 0:00:00]}  c5 {[%clk 0:00:00]} 2. Nf3 {[%clk 0:00:00]}  d6 {[%clk 0:00:00]} 3. g3 {[%clk 0:00:00]}  g6 {[%clk 0:00:00]} 4. d4 {[%clk 0:00:00]}  cxd4 {[%clk 0:00:00]} 5. Nxd4 {[%clk 0:00:00]}  Bg7 {[%clk 0:00:00]} 6. Bg2 {[%clk 0:00:00]}  e6 {[%clk 0:00:00]} 7. O-O {[%clk 0:00:00]}  Ne7 {[%clk 0:00:00]} 8. c4 {[%clk 0:00:00]}  O-O {[%clk 0:00:00]} 9. Nc3 {[%clk 0:00:00]}  Nbc6 {[%clk 0:00:00]} 10. Be3 {[%clk 0:00:00]}  Bd7 {[%clk 0:00:00]} 11. Qd2 {[%clk 0:00:00]}  Ne5 {[%clk 0:00:00]} 12. b3 {[%clk 0:00:00]}  a6 {[%clk 0:00:00]} 13. h3 {[%clk 0:00:00]}  Qc7 {[%clk 0:00:00]} 14. Rac1 {[%clk 0:00:00]}  Rad8 {[%clk 0:00:00]} 15. Bh6 {[%clk 0:00:00]}  N7c6 {[%clk 0:00:00]} 16. Bxg7 {[%clk 0:00:00]}  Kxg7 {[%clk 0:00:00]} 17. f4 {[%clk 0:00:00]}  Qb6 {[%clk 0:00:00]} 18. Rfd1 {[%clk 0:00:00]}  Bc8 {[%clk 0:00:00]} 19. Qf2 {[%clk 0:00:00]}  Nxd4 {[%clk 0:00:00]} 20. Qxd4 {[%clk 0:00:00]}  Qxd4+ {[%clk 0:00:00]} 21. Rxd4 {[%clk 0:00:00]}  Nc6 {[%clk 0:00:00]} 22. Rd2 {[%clk 0:00:00]}  e5 {[%clk 0:00:00]} 23. Rcd1 {[%clk 0:00:00]}  Nd4 {[%clk 0:00:00]} 24. Ne2 {[%clk 0:00:00]}  Nxe2+ {[%clk 0:00:00]} 25. Rxe2 {[%clk 0:00:00]}  exf4 {[%clk 0:00:00]} 26. gxf4 {[%clk 0:00:00]}  b5 {[%clk 0:00:00]} 27. cxb5 {[%clk 0:00:00]}  axb5 {[%clk 0:00:00]} 28. Red2 {[%clk 0:00:00]}  Bb7 {[%clk 0:00:00]} 29. Rxd6 {[%clk 0:00:00]}  Rc8 {[%clk 0:00:00]} 30. Rb6 {[%clk 0:00:00]}  Ba8 {[%clk 0:00:00]} 31. Rd2 {[%clk 0:00:00]}  Rc1+ {[%clk 0:00:00]} 32. Kf2 {[%clk 0:00:00]}  Re8 {[%clk 0:00:00]} 33. e5 {[%clk 0:00:00]}  Bxg2 {[%clk 0:00:00]} 34. Kxg2 {[%clk 0:00:00]}  Rc5 {[%clk 0:00:00]} 35. Rb7 {[%clk 0:00:00]}  g5 {[%clk 0:00:00]} 36. Rdd7 {[%clk 0:00:00]}  gxf4 {[%clk 0:00:00]} 37. Rxf7+ {[%clk 0:00:00]}  Kg8 {[%clk 0:00:00]} 38. Rg7+ {[%clk 0:00:00]}  Kh8 {[%clk 0:00:00]} 39. Rxh7+ {[%clk 0:00:00]}  Kg8 {[%clk 0:00:00]} 40. Rbg7+ {[%clk 0:00:00]}  Kf8 {[%clk 0:00:00]} 41. Rh8+ {[%clk 0:00:00]}  Kxg7 {[%clk 0:00:00]} 42. Rxe8 {[%clk 0:00:00]}  Kf7 {[%clk 0:00:00]} 43. Rb8 {[%clk 0:00:00]}  Rxe5 {[%clk 0:00:00]} 44. Kf3 {[%clk 0:00:00]}  Rh5 {[%clk 0:00:00]} 45. Kg4 {[%clk 0:00:00]}  Rh6 {[%clk 0:00:00]} 46. Rxb5 {[%clk 0:00:00]}  Rg6+ {[%clk 0:00:00]} 47. Kxf4 {[%clk 0:00:00]}  Rg2 {[%clk 0:00:00]} 48. a4 {[%clk 0:00:00]} 1-0


[Site "https://www.chess.com"]

[Event "Titled Tuesday Blitz August 16 Early 2022"]
[White "Filippova, Margarita"]
[Black "Ajay, Karthikeyan"]
[WhiteFideId "34199680"]
[BlackFideId "35011685"]
[WhiteElo "1734"]
[BlackElo "2168"]
[Result "1/2-1/2"]
[Round "02"]
[TimeControl "180+2"]
[Date "2022.08.18"]
[WhiteClock "0:00:00"]
[BlackClock "0:00:00"]

1. Nf3 {[%clk 0:00:00]}  Nf6 {[%clk 0:00:00]} 2. d4 {[%clk 0:00:00]}  g6 {[%clk 0:00:00]} 3. c4 {[%clk 0:00:00]}  Bg7 {[%clk 0:00:00]} 4. Nc3 {[%clk 0:00:00]}  O-O {[%clk 0:00:00]} 5. e4 {[%clk 0:00:00]}  d6 {[%clk 0:00:00]} 6. Be2 {[%clk 0:00:00]}  e5 {[%clk 0:00:00]} 7. O-O {[%clk 0:00:00]}  Nc6 {[%clk 0:00:00]} 8. d5 {[%clk 0:00:00]}  Ne7 {[%clk 0:00:00]} 9. b4 {[%clk 0:00:00]}  a5 {[%clk 0:00:00]} 10. Ba3 {[%clk 0:00:00]}  axb4 {[%clk 0:00:00]} 11. Bxb4 {[%clk 0:00:00]}  b6 {[%clk 0:00:00]} 12. a4 {[%clk 0:00:00]}  Re8 {[%clk 0:00:00]} 13. a5 {[%clk 0:00:00]}  c5 {[%clk 0:00:00]} 14. dxc6 {[%clk 0:00:00]}  Nxc6 {[%clk 0:00:00]} 15. Bxd6 {[%clk 0:00:00]}  Rxa5 {[%clk 0:00:00]} 16. Rxa5 {[%clk 0:00:00]}  Nxa5 {[%clk 0:00:00]} 17. Bxe5 {[%clk 0:00:00]}  Qxd1 {[%clk 0:00:00]} 18. Rxd1 {[%clk 0:00:00]}  Nxe4 {[%clk 0:00:00]} 19. Nxe4 {[%clk 0:00:00]}  Bxe5 {[%clk 0:00:00]} 20. Nxe5 {[%clk 0:00:00]}  Rxe5 {[%clk 0:00:00]} 21. Bf3 {[%clk 0:00:00]}  Kg7 {[%clk 0:00:00]} 22. Nd6 {[%clk 0:00:00]}  Be6 {[%clk 0:00:00]} 23. Bd5 {[%clk 0:00:00]}  Bxd5 {[%clk 0:00:00]} 24. cxd5 {[%clk 0:00:00]}  Kf8 {[%clk 0:00:00]} 25. f4 {[%clk 0:00:00]}  Re7 {[%clk 0:00:00]} 26. Rb1 {[%clk 0:00:00]}  Nb7 {[%clk 0:00:00]} 27. Rxb6 {[%clk 0:00:00]}  Nxd6 {[%clk 0:00:00]} 28. Rxd6 {[%clk 0:00:00]}  Re4 {[%clk 0:00:00]} 29. g3 {[%clk 0:00:00]}  Rd4 {[%clk 0:00:00]} 30. Kf2 {[%clk 0:00:00]}  Ke7 {[%clk 0:00:00]} 31. Rb6 {[%clk 0:00:00]}  Rd2+ {[%clk 0:00:00]} 32. Kg1 {[%clk 0:00:00]}  Rxd5 {[%clk 0:00:00]} 33. Kg2 {[%clk 0:00:00]}  Rd2+ {[%clk 0:00:00]} 34. Kh3 {[%clk 0:00:00]}  h5 {[%clk 0:00:00]} 35. Rb7+ {[%clk 0:00:00]}  Kf6 {[%clk 0:00:00]} 36. Rb6+ {[%clk 0:00:00]}  Kg7 {[%clk 0:00:00]} 37. Rb7 {[%clk 0:00:00]}  Re2 {[%clk 0:00:00]} 38. Rb6 {[%clk 0:00:00]}  Kf8 {[%clk 0:00:00]} 39. Rb8+ {[%clk 0:00:00]}  Ke7 {[%clk 0:00:00]} 40. Rb7+ {[%clk 0:00:00]}  Kf6 {[%clk 0:00:00]} 41. Rb6+ {[%clk 0:00:00]}  Kf5 {[%clk 0:00:00]} 42. Rb5+ {[%clk 0:00:00]}  Kf6 {[%clk 0:00:00]} 43. Rb6+ {[%clk 0:00:00]}  Re6 {[%clk 0:00:00]} 44. Rb7 {[%clk 0:00:00]}  Rc6 {[%clk 0:00:00]} 45. Rb3 {[%clk 0:00:00]}  Rc5 {[%clk 0:00:00]} 46. Rb6+ {[%clk 0:00:00]}  Kf5 {[%clk 0:00:00]} 47. Rb7 {[%clk 0:00:00]}  f6 {[%clk 0:00:00]} 48. Rh7 {[%clk 0:00:00]}  Rc2 {[%clk 0:00:00]} 49. Rh6 {[%clk 0:00:00]}  g5 {[%clk 0:00:00]} 50. Rxh5 {[%clk 0:00:00]}  Rb2 {[%clk 0:00:00]} 51. fxg5 {[%clk 0:00:00]}  fxg5 {[%clk 0:00:00]} 52. g4+ {[%clk 0:00:00]}  Kf4 {[%clk 0:00:00]} 53. Rh8 {[%clk 0:00:00]}  Rb3+ {[%clk 0:00:00]} 54. Kg2 {[%clk 0:00:00]}  Rb2+ {[%clk 0:00:00]} 55. Kh3 {[%clk 0:00:00]}  Rb3+ {[%clk 0:00:00]} 56. Kg2 {[%clk 0:00:00]}  Kxg4 {[%clk 0:00:00]} 57. h3+ {[%clk 0:00:00]}  Kf5 {[%clk 0:00:00]} 58. Rf8+ {[%clk 0:00:00]}  Kg6 {[%clk 0:00:00]} 59. Rg8+ {[%clk 0:00:00]}  Kh5 {[%clk 0:00:00]} 60. Rh8+ {[%clk 0:00:00]}  Kg6 {[%clk 0:00:00]} 61. Rg8+ {[%clk 0:00:00]}  Kf6 {[%clk 0:00:00]} 62. Rf8+ {[%clk 0:00:00]}  Kg7 {[%clk 0:00:00]} 63. Rc8 {[%clk 0:00:00]}  Rb6 {[%clk 0:00:00]} 64. Kg3 {[%clk 0:00:00]}  Kg6 {[%clk 0:00:00]} 65. Kg4 {[%clk 0:00:00]}  Rb4+ {[%clk 0:00:00]} 66. Kg3 {[%clk 0:00:00]}  Rb3+ {[%clk 0:00:00]} 67. Kg4 {[%clk 0:00:00]}  Rb4+ {[%clk 0:00:00]} 68. Kg3 {[%clk 0:00:00]}  Rb7 {[%clk 0:00:00]} 69. Rg8+ {[%clk 0:00:00]}  Rg7 {[%clk 0:00:00]} 70. Rxg7+ {[%clk 0:00:00]}  Kxg7 {[%clk 0:00:00]} 71. h4 {[%clk 0:00:00]}  Kg6 {[%clk 0:00:00]} 72. hxg5 {[%clk 0:00:00]}  Kxg5 {[%clk 0:00:00]} 1/2-1/2


[Site "https://www.chess.com"]